fUSD/lending_fUSD_20251201
["ID","MTS","AMOUNT","RATE_DAILY","PERIOD"]
[395252943,1764569442981,-1325.02,0.00016999,2]
[395252944,1764569442990,-1325.02,0.00016999,2]
[395252945,1764569442999,-1325.02,0.00016999,2]
[395252946,1764569443009,-1325.02,0.00016999,2]
[395252947,1764569443019,-1325.02,0.00016999,2]
[395252948,1764569443028,-1325.02,0.00016999,2]
[395252949,1764569443038,-1325.02,0.00016999,2]
[395252950,1764569443047,-1325.02,0.00016999,2]
[395252951,1764569443057,-1325.07746161,0.00016999,2]
[395252952,1764569443066,-500.0,0.00016999,2]
[395252953,1764569443076,-500.0,0.00016999,2]
[395252954,1764569443085,-500.0,0.00016999,2]
[395252955,1764569443096,-500.0,0.00016999,2]
[395252956,1764569443105,-500.0,0.00016999,2]
[395252957,1764569443115,-500.0,0.00016999,2]
[395252958,1764569443124,-500.0,0.00016999,2]
[395252959,1764569443134,-500.0,0.00016999,2]
[395252960,1764569443143,-500.0,0.00016999,2]
[395252961,1764569443152,-330.92189094,0.00016999,2]
[395252962,1764569443162,-209.437,0.00017,2]
[395252963,1764569443174,-219.633,0.00017,2]
[395252964,1764569443184,-250.0,0.00017,2]
[395252965,1764569443195,-154.552,0.00017,2]
[395252966,1764569443204,-150.0,0.00017,2]
[395252967,1764569443213,-180.791,0.00017,2]
[395252968,1764569443223,-610.0,0.00017,2]
[395252969,1764569443232,-1322.0,0.00017,2]
[395252970,1764569443242,-3442.0,0.00017,2]
[395252971,1764569443251,-1603.0,0.00017,2]
[395252972,1764569443260,-1476941.5527701,0.00017,2]
[395252977,1764569444621,-328.31959918,0.00017,2]
[395252978,1764569444853,-2936211.84511201,0.00017,2]
[395252979,1764569444862,-5947.40599635,0.00017,2]
[395252980,1764569444872,-1154383.47256866,0.00017,2]
[395252981,1764569444888,-163.94,0.0001644,2]
[395252982,1764569444898,-3315.59426635,0.00017,2]
[395252983,1764569444909,-865.48301888,0.00017,2]
[395252984,1764569444924,-406.82,0.00017,2]
[395252985,1764569444936,-12949.5,0.00017,2]
[395252987,1764569445918,-722.27399999,0.00014165,2]
[395252988,1764569445929,-6676.22600001,0.00014165,2]
[395252989,1764569445938,-427.65493559,0.00016492,2]
[395252990,1764569445947,-269.79588736,0.00016897,2]
[395252991,1764569445955,-48592.31384975,0.00017,2]
[395252992,1764569446034,-2167.4572742,0.00017,2]
[395252993,1764569446045,-508.38502,0.00017,2]
[395253244,1764570247905,11.47691252,0.00012102,2]
[395253303,1764570632115,-626.31575954,0.00012102,2]
[395253304,1764570632129,-459.20732794,0.00012102,2]
[395253305,1764570632140,-150.0,0.000122,2]
[395253306,1764570632150,-212.8982924,0.000125,2]
[395253308,1764570632230,-9009.92035964,0.000125,2]
[395253309,1764570632239,-1097.0,0.00012738,2]
[395253310,1764570632250,-300.0,0.0001287,2]
[395253311,1764570632259,-397.77698246,0.0001287,2]
[395253312,1764570632271,-802.22301754,0.0001287,2]
[395253313,1764570632281,-300.0,0.0001287,2]
[395253314,1764570632290,-300.0,0.0001287,2]
[395253315,1764570632300,-1124.0,0.00012871,2]
[395253316,1764570632309,-150.0,0.00012871,2]
[395253317,1764570632319,-194.80476971,0.00012872,2]
[395253318,1764570632328,-151.5597243,0.00012872,2]
[395253319,1764570632338,-636.24289025,0.00012872,2]
[395253320,1764570632348,-500.0,0.00012872,2]
[395253321,1764570632358,-500.0,0.00012872,2]
[395253322,1764570632368,-500.0,0.00012872,2]
[395253323,1764570632377,-500.0,0.00012872,2]
[395253324,1764570632386,-500.0,0.00012872,2]
[395253325,1764570632397,-500.0,0.00012872,2]
[395253326,1764570632407,-500.0,0.00012872,2]
[395253327,1764570632416,-500.0,0.00012872,2]
[395253328,1764570632425,-500.0,0.00012872,2]
[395253329,1764570632434,-161.65357952,0.00012873,2]
[395253330,1764570632444,-500.0,0.00012873,2]
[395253331,1764570632453,-500.0,0.00012873,2]
[395253332,1764570632463,-500.0,0.00012873,2]
[395253333,1764570632472,-299.04007327,0.00012873,2]
[395253334,1764570632484,-200.95992673,0.00012873,2]
[395253335,1764570632493,-500.0,0.00012873,2]
[395253336,1764570632503,-500.0,0.00012873,2]
[395253337,1764570632512,-500.0,0.00012873,2]
[395253338,1764570632521,-500.0,0.00012873,2]
[395253339,1764570632530,-500.0,0.00012873,2]
[395253340,1764570632539,-500.0,0.00012873,2]
[395253341,1764570632549,-500.0,0.00012873,2]
[395253342,1764570632558,-500.0,0.00012873,2]
[395253343,1764570632568,-500.0,0.00012873,2]
[395253344,1764570632577,-500.0,0.00012873,2]
[395253345,1764570632587,-500.0,0.00012873,2]
[395253346,1764570632596,-500.0,0.00012873,2]
[395253347,1764570632605,-500.0,0.00012873,2]
[395253348,1764570632615,-500.0,0.00012873,2]
[395253349,1764570632624,-500.0,0.00012873,2]
[395253350,1764570632635,-500.0,0.00012873,2]
[395253351,1764570632645,-500.0,0.00012873,2]
[395253352,1764570632658,-500.0,0.00012873,2]
[395253353,1764570632667,-500.0,0.00012873,2]
[395253354,1764570632676,-500.0,0.00012873,2]
[395253355,1764570632685,-500.0,0.00012873,2]
[395253356,1764570632695,-500.0,0.00012873,2]
[395253357,1764570632704,-500.0,0.00012873,2]
[395253358,1764570632714,-500.0,0.00012873,2]
[395253359,1764570632723,-500.0,0.00012873,2]
[395253360,1764570632736,-500.0,0.00012873,2]
[395253361,1764570632745,-500.0,0.00012873,2]
[395253362,1764570632755,-500.0,0.00012873,2]
[395253363,1764570632764,-500.0,0.00012873,2]
[395253364,1764570632775,-500.0,0.00012873,2]
[395253365,1764570632784,-500.0,0.00012873,2]
[395253366,1764570632794,-500.0,0.00012873,2]
[395253367,1764570632803,-500.0,0.00012873,2]
[395253368,1764570632813,-500.0,0.00012873,2]
[395253369,1764570632823,-500.0,0.00012873,2]
[395253370,1764570632832,-500.0,0.00012873,2]
[395253371,1764570632841,-500.0,0.00012873,2]
[395253372,1764570632850,-500.0,0.00012873,2]
[395253373,1764570632860,-500.0,0.00012873,2]
[395253374,1764570632869,-500.0,0.00012873,2]
[395253375,1764570632878,-500.0,0.00012873,2]
[395253376,1764570632888,-500.0,0.00012873,2]
[395253377,1764570632898,-500.0,0.00012873,2]
[395253378,1764570632908,-500.0,0.00012873,2]
[395253379,1764570632917,-500.0,0.00012873,2]
[395253380,1764570632926,-500.0,0.00012873,2]
[395253381,1764570632935,-500.0,0.00012873,2]
[395253382,1764570632945,-500.0,0.00012873,2]
[395253383,1764570632954,-500.0,0.00012873,2]
[395253384,1764570632964,-1600.0,0.00012966,2]
[395253385,1764570632973,-88.32907771,0.00013038,2]
[395253403,1764570638225,-500.0,0.00012873,2]
[395253404,1764570638234,-118.91813881,0.00013038,2]
[395253405,1764570638244,-500.0,0.00013038,2]
[395253406,1764570638253,-163.23782974,0.00013038,2]
[395253407,1764570638263,-185.68329784,0.00013038,2]
[395253408,1764570638272,-5676.2,0.00013039,2]
[395253409,1764570638282,-1140.75999252,0.00013308,2]
[395253410,1764570638291,-250.0,0.00013312,2]
[395253411,1764570638301,-4982.159,0.00013326,2]
[395253412,1764570638310,-216.641,0.00013326,2]
[395253413,1764570638319,-760000.0,0.00013398,2]
[395253414,1764570638329,-1097.0,0.00013409,2]
[395253415,1764570638339,-1000.0,0.00013421,2]
[395253416,1764570638348,-9999.99,0.00013498,2]
[395253417,1764570638357,-999.99,0.00013498,2]
[395253418,1764570638367,-9999.99,0.00013498,2]
[395253419,1764570638376,-150.99,0.00013498,2]
[395253420,1764570638386,-2500.0,0.00013498,2]
[395253421,1764570638395,-150.0,0.00013519,2]
[395253422,1764570638406,-151.0,0.0001359,2]
[395253423,1764570638416,-500.0,0.0001359,2]
[395253424,1764570638426,-500.0,0.0001359,2]
[395253425,1764570638436,-151.0,0.0001359,2]
[395253426,1764570638445,-500.0,0.0001359,2]
[395253427,1764570638456,-500.0,0.0001359,2]
[395253428,1764570638466,-151.0,0.0001359,2]
[395253429,1764570638476,-500.0,0.0001359,2]
[395253430,1764570638485,-500.0,0.0001359,2]
[395253431,1764570638495,-151.0,0.0001359,2]
[395253432,1764570638504,-500.0,0.0001359,2]
[395253433,1764570638514,-500.0,0.0001359,2]
[395253434,1764570638523,-151.0,0.0001359,2]
[395253435,1764570638533,-500.0,0.0001359,2]
[395253436,1764570638542,-500.0,0.0001359,2]
[395253437,1764570638551,-151.0,0.0001359,2]
[395253438,1764570638561,-500.0,0.0001359,2]
[395253439,1764570638571,-151.0,0.0001359,2]
[395253440,1764570638580,-500.0,0.0001359,2]
[395253441,1764570638589,-151.0,0.0001359,2]
[395253442,1764570638599,-500.0,0.0001359,2]
[395253443,1764570638608,-151.0,0.0001359,2]
[395253445,1764570638618,-500.0,0.0001359,2]
[395253446,1764570638627,-151.0,0.0001359,2]
[395253447,1764570638637,-500.0,0.0001359,2]
[395253448,1764570638646,-151.0,0.0001359,2]
[395253449,1764570638658,-500.0,0.0001359,2]
[395253450,1764570638668,-151.0,0.0001359,2]
[395253451,1764570638678,-500.0,0.0001359,2]
[395253452,1764570638687,-151.0,0.0001359,2]
[395253453,1764570638697,-500.0,0.0001359,2]
[395253454,1764570638709,-151.0,0.0001359,2]
[395253455,1764570638718,-500.0,0.0001359,2]
[395253456,1764570638728,-500.0,0.0001359,2]
[395253457,1764570638738,-500.0,0.0001359,2]
[395253458,1764570638747,-200.0,0.0001359,2]
[395253459,1764570638757,-500.0,0.0001359,2]
[395253460,1764570638766,-500.0,0.0001359,2]
[395253461,1764570638775,-500.0,0.0001359,2]
[395253462,1764570638785,-500.0,0.0001359,2]
[395253463,1764570638795,-500.0,0.0001359,2]
[395253464,1764570638804,-500.0,0.0001359,2]
[395253465,1764570638813,-500.0,0.0001359,2]
[395253466,1764570638823,-200.0,0.0001359,2]
[395253467,1764570638832,-151.0,0.0001359,2]
[395253468,1764570638843,-151.0,0.0001359,2]
[395253469,1764570638853,-151.0,0.0001359,2]
[395253470,1764570638862,-151.0,0.0001359,2]
[395253471,1764570638872,-500.0,0.0001359,2]
[395253472,1764570638882,-151.0,0.0001359,2]
[395253473,1764570638891,-151.0,0.0001359,2]
[395253474,1764570638901,-151.0,0.0001359,2]
[395253475,1764570638911,-151.0,0.0001359,2]
[395253476,1764570638920,-151.0,0.0001359,2]
[395253477,1764570638930,-200.0,0.0001359,2]
[395253478,1764570638939,-151.0,0.0001359,2]
[395253479,1764570638949,-151.0,0.0001359,2]
[395253480,1764570638959,-151.0,0.0001359,2]
[395253481,1764570638968,-214.10185546,0.0001359,2]
[395253482,1764570638978,-320.24,0.0001359,2]
[395253483,1764570638988,-150.99,0.00013597,2]
[395253484,1764570638998,-9443.14707232,0.00013598,2]
[395253485,1764570639007,-2794.14526713,0.00013598,2]
[395253486,1764570639017,-500.0,0.00013698,2]
[395253487,1764570639026,-500.0,0.00013698,2]
[395253488,1764570639037,-500.0,0.00013698,2]
[395253489,1764570639047,-500.0,0.00013698,2]
[395253490,1764570639056,-500.0,0.00013698,2]
[395253491,1764570639066,-500.0,0.00013698,2]
[395253492,1764570639075,-500.0,0.00013698,2]
[395253493,1764570639085,-500.0,0.00013698,2]
[395253494,1764570639095,-500.0,0.00013698,2]
[395253495,1764570639105,-620.43832599,0.00013698,2]
[395253496,1764570639115,-500.0,0.00013698,2]
[395253497,1764570639125,-500.0,0.00013698,2]
[395253498,1764570639135,-500.0,0.00013698,2]
[395253499,1764570639145,-500.0,0.00013698,2]
[395253500,1764570639155,-639.66251844,0.00013698,2]
[395253501,1764570639164,-500.0,0.00013698,2]
[395253502,1764570639174,-500.0,0.00013698,2]
[395253503,1764570639183,-500.0,0.00013698,2]
[395253504,1764570639192,-500.0,0.00013698,2]
[395253505,1764570639201,-500.0,0.00013698,2]
[395253506,1764570639211,-500.0,0.00013698,2]
[395253507,1764570639220,-500.0,0.00013698,2]
[395253508,1764570639229,-500.0,0.00013698,2]
[395253509,1764570639239,-500.0,0.00013698,2]
[395253510,1764570639248,-500.0,0.00013698,2]
[395253511,1764570639257,-500.0,0.00013698,2]
[395253512,1764570639266,-360.12591813,0.00013698,2]
[395253513,1764570639275,-500.0,0.00013698,2]
[395253514,1764570639284,-500.0,0.00013698,2]
[395253515,1764570639293,-500.0,0.00013698,2]
[395253516,1764570639302,-524.15106489,0.00013698,2]
[395253517,1764570639312,-500.0,0.00013698,2]
[395253518,1764570639321,-805.41,0.00013698,2]
[395253519,1764570639331,-805.41,0.00013698,2]
[395253520,1764570639340,-805.41,0.00013698,2]
[395253521,1764570639349,-166.66,0.00013699,2]
[395253522,1764570639358,-2091.64,0.00013699,2]
[395253523,1764570639368,-600.0,0.00013699,2]
[395253524,1764570639377,-1140.7599925,0.00013821,2]
[395253525,1764570639387,-166.66,0.00013836,2]
[395253526,1764570639396,-320.24,0.00013864,2]
[395253527,1764570639405,-9443.14707226,0.00013965,2]
[395253528,1764570639415,-2794.14526713,0.00013965,2]
[395253529,1764570639424,-915.43921071,0.00013968,2]
[395253530,1764570639434,-166.66,0.00013973,2]
[395253531,1764570639443,-255.0,0.00013978,2]
[395253532,1764570639453,-12786.44069485,0.00014012,2]
[395253533,1764570639462,-166.66,0.0001411,2]
[395253534,1764570639471,-1097.0,0.00014115,2]
[395253535,1764570639480,-420.0,0.00014116,2]
[395253536,1764570639489,-420.0,0.00014116,2]
[395253537,1764570639499,-320.24,0.00014138,2]
[395253538,1764570639510,-1680.0,0.00014157,2]
[395253539,1764570639521,-166.66,0.00014247,2]
[395253540,1764570639530,-600.0,0.00014247,2]
[395253541,1764570639540,-9443.14707226,0.00014332,2]
[395253542,1764570639551,-2794.14526713,0.00014332,2]
[395253543,1764570639560,-1140.7599925,0.00014334,2]
[395253544,1764570639570,-166.66,0.00014384,2]
[395253545,1764570639579,-2476.70565861,0.0001439,2]
[395253546,1764570639588,-320.24,0.00014412,2]
[395253547,1764570639597,-151.0,0.00014521,2]
[395253548,1764570639607,-1600.0,0.00014586,2]
[395253549,1764570639619,-40229.2758886,0.000146,2]
[395253550,1764570639629,-320.24,0.00014686,2]
[395253551,1764570639639,-9443.14707226,0.00014699,2]
[395253552,1764570639649,-2794.14526713,0.00014699,2]
[395253553,1764570639662,-600.0,0.00014795,2]
[395253554,1764570639672,-1140.7599925,0.00014847,2]
[395253555,1764570639682,-1097.0,0.00014858,2]
[395253556,1764570639691,-328.59727827,0.00014913,2]
[395253557,1764570639702,-1287.42138508,0.0001499,2]
[395253558,1764570639712,-151.0,0.00014997,2]
[395253559,1764570639722,-3901.42886975,0.00014999,2]
[395253560,1764570639733,-770.98935679,0.00015,2]
[395253561,1764570639742,-1192.8279898,0.00015,2]
[395253562,1764570639751,-221927.36579948,0.00015,4]
[395253563,1764570639760,-10006.51407668,0.00015,2]
[395253564,1764570639769,-9443.14707226,0.00015066,2]
[395253565,1764570639779,-2794.14526713,0.00015066,2]
[395253566,1764570639790,-200.0,0.00015111,2]
[395253567,1764570639800,-1067.72,0.00015127,2]
[395253568,1764570639810,-433.0,0.00015175,2]
[395253569,1764570639821,-150.0,0.00015288,2]
[395253570,1764570639830,-150.0,0.00015288,2]
[395253571,1764570639840,-150.0,0.00015288,2]
[395253572,1764570639850,-150.0,0.00015288,2]
[395253573,1764570639859,-150.0,0.00015288,2]
[395253574,1764570639869,-150.0,0.00015288,2]
[395253575,1764570639880,-150.0,0.00015288,2]
[395253576,1764570639889,-150.0,0.00015288,2]
[395253577,1764570639900,-150.0,0.00015288,2]
[395253578,1764570639909,-150.0,0.00015288,2]
[395253579,1764570639919,-150.0,0.00015288,2]
[395253580,1764570639928,-150.0,0.00015288,2]
[395253581,1764570639937,-150.0,0.00015288,2]
[395253582,1764570639946,-150.0,0.00015288,2]
[395253583,1764570639956,-150.0,0.00015288,2]
[395253584,1764570639965,-1517.64,0.000153,2]
[395253585,1764570639975,-150.0,0.00015321,2]
[395253586,1764570639984,-150.0,0.00015332,2]
[395253587,1764570639994,-600.0,0.00015342,2]
[395253588,1764570640003,-150.0,0.00015353,2]
[395253589,1764570640012,-150.0,0.00015354,2]
[395253590,1764570640022,-1140.7599925,0.00015361,2]
[395253592,1764570640031,-150.0,0.00015362,2]
[395253593,1764570640041,-150.0,0.00015369,2]
[395253594,1764570640050,-150.0,0.00015377,2]
[395253595,1764570640059,-150.0,0.00015377,2]
[395253596,1764570640069,-150.0,0.00015388,2]
[395253597,1764570640078,-13856.4797207,0.000154,2]
[395253598,1764570640089,-504.59701012,0.000154,2]
[395253599,1764570640098,-151.0,0.00015413,2]
[395253600,1764570640108,-1250.0,0.00015413,2]
[395253601,1764570640119,-1250.0,0.00015413,2]
[395253602,1764570640366,-832.0,0.00015413,2]
[395253603,1764570640416,-150.0,0.00015418,2]
[395253604,1764570640426,-150.0,0.00015421,2]
[395253605,1764570640436,-150.0,0.00015422,2]
[395253606,1764570640446,-9443.14707226,0.00015432,2]
[395253607,1764570640457,-2794.14526713,0.00015432,2]
[395253608,1764570640467,-150.0,0.00015435,2]
[395253609,1764570640477,-150.0,0.00015442,2]
[395253610,1764570640486,-150.0,0.00015449,2]
[395253611,1764570640495,-150.0,0.00015454,2]
[395253612,1764570640506,-150.0,0.00015458,2]
[395253613,1764570640515,-150.0,0.00015466,2]
[395253614,1764570640525,-150.0,0.00015466,2]
[395253615,1764570640534,-587.0,0.00015483,2]
[395253616,1764570640543,-150.0,0.00015484,2]
[395253618,1764570640552,-150.0,0.00015488,2]
[395253619,1764570640563,-150.0,0.00015509,2]
[395253620,1764570640572,-150.0,0.00015511,2]
[395253621,1764570640582,-150.0,0.00015521,2]
[395253622,1764570640592,-150.0,0.0001553,2]
[395253623,1764570640601,-150.0,0.0001553,2]
[395253624,1764570640612,-150.0,0.00015549,2]
[395253625,1764570640621,-150.0,0.00015554,2]
[395253626,1764570640632,-150.0,0.00015556,2]
[395253627,1764570640641,-150.0,0.00015556,2]
[395253628,1764570640652,-2351.0,0.00015573,2]
[395253629,1764570640664,-150.0,0.00015583,2]
[395253630,1764570640674,-150.0,0.00015587,2]
[395253631,1764570640683,-150.0,0.00015597,2]
[395253632,1764570640692,-1097.0,0.000156,2]
[395253633,1764570640702,-150.0,0.00015601,2]
[395253634,1764570640711,-150.0,0.00015611,2]
[395253635,1764570640721,-150.0,0.00015614,2]
[395253636,1764570640731,-150.0,0.00015621,2]
[395253638,1764570640740,-150.0,0.00015627,2]
[395253640,1764570640750,-150.0,0.00015627,2]
[395253641,1764570640759,-150.0,0.00015645,2]
[395253642,1764570640769,-150.0,0.00015645,2]
[395253643,1764570640778,-150.0,0.00015654,2]
[395253644,1764570640787,-150.0,0.00015657,2]
[395253645,1764570640796,-150.0,0.0001568,2]
[395253646,1764570640805,-150.0,0.00015687,2]
[395253647,1764570640816,-150.0,0.0001569,2]
[395253648,1764570640825,-150.0,0.00015692,2]
[395253649,1764570640835,-150.0,0.00015721,2]
[395253650,1764570640845,-150.0,0.00015731,2]
[395253651,1764570640860,-150.0,0.00015735,2]
[395253652,1764570640870,-150.0,0.00015735,2]
[395253653,1764570640879,-150.0,0.00015745,2]
[395253654,1764570640887,-150.0,0.00015751,2]
[395253655,1764570640897,-150.0,0.00015754,2]
[395253656,1764570640907,-150.0,0.00015773,2]
[395253657,1764570640916,-150.0,0.00015773,2]
[395253658,1764570640926,-150.0,0.00015779,2]
[395253659,1764570640935,-150.0,0.00015787,2]
[395253660,1764570640944,-150.0,0.00015797,2]
[395253661,1764570640954,-9443.14707226,0.00015799,2]
[395253662,1764570640964,-2794.14526713,0.00015799,2]
[395253663,1764570640973,-150.0,0.00015805,2]
[395253664,1764570640982,-2223.21323629,0.00015807,2]
[395253665,1764570640992,-150.0,0.0001581,2]
[395253666,1764570641002,-150.0,0.00015821,2]
[395253667,1764570641011,-150.0,0.00015824,2]
[395253668,1764570641020,-150.0,0.00015824,2]
[395253669,1764570641030,-160.03289921,0.0001585,2]
[395253670,1764570641040,-500.0,0.0001585,2]
[395253671,1764570641050,-500.0,0.0001585,2]
[395253672,1764570641059,-550.61391722,0.0001585,2]
[395253673,1764570641068,-500.0,0.0001585,2]
[395253674,1764570641078,-500.0,0.0001585,2]
[395253675,1764570641087,-500.0,0.0001585,2]
[395253676,1764570641096,-500.0,0.0001585,2]
[395253677,1764570641106,-500.0,0.0001585,2]
[395253678,1764570641115,-356.06806903,0.0001585,2]
[395253679,1764570641124,-500.0,0.0001585,2]
[395253680,1764570641133,-500.0,0.0001585,2]
[395253681,1764570641142,-500.0,0.0001585,2]
[395253682,1764570641151,-500.0,0.0001585,2]
[395253683,1764570641160,-500.0,0.0001585,2]
[395253684,1764570641169,-500.0,0.0001585,2]
[395253685,1764570641178,-500.0,0.0001585,2]
[395253686,1764570641187,-500.0,0.0001585,2]
[395253687,1764570641196,-150.0,0.00015854,2]
[395253688,1764570641205,-150.0,0.00015854,2]
[395253689,1764570641214,-150.0,0.00015854,2]
[395253690,1764570641223,-150.0,0.00015869,2]
[395253691,1764570641232,-1140.7599925,0.00015874,2]
[395253692,1764570641241,-150.0,0.00015876,2]
[395253693,1764570641250,-150.0,0.00015878,2]
[395253694,1764570641259,-541.0,0.00015886,2]
[395253695,1764570641269,-541.0,0.00015887,2]
[395253696,1764570641277,-150.0,0.00015887,2]
[395253697,1764570641287,-600.0,0.0001589,2]
[395253698,1764570641296,-24086.4323,0.000159,2]
[395253699,1764570641305,-1000.0,0.000159,2]
[395253700,1764570641314,-150.0,0.00015905,2]
[395253701,1764570641323,-150.0,0.00015913,2]
[395253702,1764570641332,-150.0,0.00015913,2]
[395253703,1764570641342,-150.0,0.0001592,2]
[395253704,1764570641351,-150.0,0.00015935,2]
[395253705,1764570641363,-150.0,0.00015941,2]
[395253706,1764570641373,-150.0,0.00015952,2]
[395253707,1764570641383,-150.0,0.00015954,2]
[395253708,1764570641391,-150.0,0.00015958,2]
[395253709,1764570641400,-150.0,0.00015967,2]
[395253710,1764570641410,-150.0,0.00015967,2]
[395253711,1764570641419,-150.0,0.00015987,2]
[395253712,1764570641428,-250.0,0.0001599,2]
[395253713,1764570641437,-552.29203276,0.00016,2]
[395253714,1764570641446,-23669.11750587,0.00016,2]
[395253715,1764570641455,-217992.40892067,0.00016,2]
[395253716,1764570641464,-346159.54810529,0.00016,4]
[395253717,1764570641473,-150.0,0.00016003,2]
[395253718,1764570641483,-150.0,0.00016003,2]
[395253719,1764570641493,-150.0,0.00016006,2]
[395253720,1764570641503,-150.0,0.00016016,2]
[395253721,1764570641512,-150.0,0.00016016,2]
[395253722,1764570641523,-150.0,0.0001602,2]
[395253723,1764570641531,-150.0,0.00016026,2]
[395253724,1764570641541,-541.0,0.00016048,2]
[395253725,1764570641550,-150.0,0.00016048,2]
[395253726,1764570641559,-500.0,0.00016048,2]
[395253727,1764570641568,-500.0,0.00016048,2]
[395253728,1764570641577,-500.0,0.00016048,2]
[395253729,1764570641588,-500.0,0.00016048,2]
[395253730,1764570641598,-500.0,0.00016048,2]
[395253731,1764570641608,-500.0,0.00016048,2]
[395253732,1764570641617,-500.0,0.00016048,2]
[395253733,1764570641626,-790.65,0.00016048,2]
[395253734,1764570641635,-790.65,0.00016048,2]
[395253735,1764570641644,-790.65,0.00016048,2]
[395253736,1764570641655,-790.65,0.00016048,2]
[395253737,1764570641666,-547.40314688,0.00016048,2]
[395253738,1764570641675,-2152.51,0.00016048,2]
[395253739,1764570641684,-2152.51,0.00016048,2]
[395253740,1764570641693,-2152.51,0.00016048,2]
[395253741,1764570641704,-2152.51,0.00016048,2]
[395253742,1764570641714,-500.0,0.00016048,2]
[395253743,1764570641723,-521.87,0.00016048,2]
[395253744,1764570641734,-150.0,0.00016054,2]
[395253745,1764570641743,-150.0,0.0001606,2]
[395253746,1764570641752,-150.0,0.00016072,2]
[395253747,1764570641763,-150.0,0.00016087,2]
[395253748,1764570641771,-150.0,0.00016092,2]
[395253749,1764570641780,-150.0,0.00016092,2]
[395253750,1764570641789,-150.0,0.00016097,2]
[395253751,1764570641798,-150.0,0.000161,2]
[395253752,1764570641807,-150.0,0.0001612,2]
[395253753,1764570641817,-150.0,0.00016137,2]
[395253754,1764570641826,-150.0,0.00016137,2]
[395253755,1764570641836,-150.0,0.00016137,2]
[395253756,1764570641845,-150.0,0.00016137,2]
[395253757,1764570641854,-300.0,0.00016149,2]
[395253758,1764570641864,-151.0,0.00016149,2]
[395253759,1764570641873,-514.84070869,0.00016149,2]
[395253760,1764570641882,-187.78006525,0.00016149,2]
[395253761,1764570641892,-187.78006525,0.00016149,2]
[395253762,1764570641901,-160.0,0.00016149,2]
[395253763,1764570641910,-578.20924308,0.00016149,2]
[395253764,1764570641920,-151.0,0.00016149,2]
[395253765,1764570641931,-1000.0,0.00016149,2]
[395253766,1764570641940,-1000.0,0.00016149,2]
[395253767,1764570641950,-1000.0,0.00016149,2]
[395253768,1764570641959,-1000.0,0.00016149,2]
[395253769,1764570641969,-1000.0,0.00016149,2]
[395253770,1764570641978,-3300.0,0.00016149,2]
[395253771,1764570641987,-151.0,0.00016149,2]
[395253772,1764570641996,-151.0,0.00016149,2]
[395253773,1764570642006,-620.0,0.00016149,2]
[395253774,1764570642015,-3000.0,0.00016149,2]
[395253775,1764570642025,-248.71531821,0.00016149,2]
[395253776,1764570642036,-150.0,0.00016154,2]
[395253777,1764570642045,-9443.14707226,0.00016166,2]
[395253778,1764570642055,-2794.14526713,0.00016166,2]